fUSD/lending_fUSD_20260418
["ID","MTS","AMOUNT","RATE_DAILY","PERIOD"]
[420728844,1776497434229,-250.0,9.9e-05,2]
[420728845,1776497434238,-33073.7314,9.9e-05,2]
[420728846,1776497434247,-1000.0,9.9e-05,2]
[420728847,1776497434256,-13527.31776472,9.9e-05,2]
[420728848,1776497434268,-282.203794,9.9e-05,2]
[420728849,1776497434280,-8548.0,9.9e-05,2]
[420728850,1776497438602,-3404.56,9.8e-05,2]
[420728851,1776497438773,-1595.44,9.8e-05,2]
[420728852,1776497438782,-1010.4055605,9.9e-05,2]
[420728853,1776497438794,-860.55186502,9.9e-05,2]
[420728870,1776497439723,-883.47601836,9.9e-05,2]
[420728873,1776497439735,-2365.275,9.9e-05,2]
[420728875,1776497439747,-2511.0,9.9e-05,2]
[420728877,1776497439758,-1844.09,9.9e-05,2]
[420728881,1776497439782,-315.1908,9.9e-05,2]
[420728883,1776497439794,-367.21991099,9.9e-05,2]
[420728885,1776497439844,-2604.75941191,9.9e-05,2]
[420728886,1776497440943,36357.10181772,7.3e-05,120]
[420728889,1776497442881,-24.77696933,9.9e-05,2]
[420728890,1776497442912,-733.51789555,9.9e-05,2]
[420728891,1776497442925,-1403411.07691366,9.9e-05,2]
[420728892,1776497443023,-1000.0,9.9e-05,2]
[420728918,1776497445731,-115270.62762979,9.711e-05,2]
[420728919,1776497445846,-166094.21207021,9.711e-05,2]
[420728920,1776497445859,-420.0,9.913e-05,2]
[420728921,1776497445871,-217.0,9.913e-05,2]
[420728922,1776497445883,-720.0,9.913e-05,2]
[420728923,1776497445896,-162.35,9.92e-05,2]
[420728924,1776497445908,-3601.6530659,9.979e-05,2]
[420728925,1776497445920,-77905.81436407,9.979e-05,2]
[420728926,1776497445939,-57833.33136,9.979e-05,2]
[420728927,1776497446122,-517.71492331,9.979e-05,2]
[420728938,1776497491223,482.6128,7.304e-05,2]
[420728945,1776498631735,-674.06681493,8.219e-05,2]
[420728947,1776498631749,-269.64318507,8.219e-05,2]
[420728948,1776498631759,-231.90881278,8.374e-05,2]
[420728950,1776498631772,-339.75260614,8.374e-05,2]
[420728951,1776498631787,-380.68182096,8.374e-05,2]
[420728952,1776498631839,-1528.66676012,8.374e-05,2]
[420728953,1776498631850,-1613.88,8.573e-05,2]
[420728954,1776498631860,-240.6060642,8.573e-05,2]
[420728955,1776498631870,-166.66,8.629e-05,2]
[420728956,1776498631880,-150.0,8.803e-05,2]
[420728957,1776498631890,-150.0,8.803e-05,2]
[420728958,1776498631900,-150.0,8.803e-05,2]
[420728959,1776498631910,-150.0,8.803e-05,2]
[420728960,1776498631925,-150.0,8.803e-05,2]
[420728961,1776498631936,-150.0,8.803e-05,2]
[420728962,1776498631946,-150.0,8.803e-05,2]
[420728963,1776498631957,-150.0,8.803e-05,2]
[420728964,1776498631967,-150.0,8.803e-05,2]
[420728965,1776498631977,-150.0,8.803e-05,2]
[420728966,1776498631987,-500.0,8.874e-05,2]
[420728967,1776498631998,-166.66,8.914e-05,2]
[420728968,1776498632009,-500.0,8.929e-05,2]
[420728969,1776498632020,-500.0,8.984e-05,2]
[420728970,1776498632030,-500.0,9e-05,2]
[420728971,1776498632040,-500.0,9.039e-05,2]
[420728972,1776498632050,-250.0,9.041e-05,2]
[420728973,1776498632061,-160.58793569,9.086e-05,2]
[420728974,1776498632071,-2500.0,9.086e-05,2]
[420728975,1776498632081,-177.3197,9.086e-05,2]
[420728976,1776498632091,-500.0,9.094e-05,2]
[420728977,1776498632101,-200.0,9.103e-05,2]
[420728978,1776498632111,-150.0,9.129e-05,2]
[420728979,1776498632122,-500.0,9.149e-05,2]
[420728980,1776498632132,-502.14384265,9.163e-05,2]
[420728981,1776498632142,-201.93286099,9.18e-05,2]
[420728982,1776498632152,-151.0,9.18e-05,2]
[420728983,1776498632163,-174.61919141,9.18e-05,2]
[420728984,1776498632173,-1377.42282659,9.181e-05,2]
[420728985,1776498632183,-585.65796441,9.181e-05,2]
[420728986,1776498632192,-200.0,9.181e-05,2]
[420728987,1776498632202,-743.50770149,9.181e-05,2]
[420728988,1776498632212,-151.1837373,9.181e-05,2]
[420728989,1776498632222,-1772.19203462,9.184e-05,2]
[420728990,1776498632232,-187.94100397,9.184e-05,2]
[420728991,1776498632242,-150.0,9.184e-05,2]
[420728992,1776498632252,-794.2,9.185e-05,2]
[420728993,1776498632261,-150.0,9.185e-05,2]
[420728994,1776498632270,-1248.292,9.186e-05,2]
[420728995,1776498632280,-185.738,9.186e-05,2]
[420728996,1776498632290,-166.66,9.199e-05,2]
[420728997,1776498632299,-500.0,9.204e-05,2]
[420728998,1776498632312,-4605.1700681,9.211e-05,2]
[420728999,1776498632324,-151.0,9.235e-05,2]
[420729000,1776498632334,-500.0,9.259e-05,2]
[420729001,1776498632344,-151.0,9.29e-05,2]
[420729002,1776498632354,-150.0,9.292e-05,2]
[420729003,1776498632363,-500.0,9.314e-05,2]
[420729004,1776498632373,-151.0,9.345e-05,2]
[420729005,1776498632383,-500.0,9.369e-05,2]
[420729006,1776498632392,-1130.0,9.397e-05,5]
[420729007,1776498632403,-1090.0,9.397e-05,5]
[420729008,1776498632412,-151.0,9.4e-05,2]
[420729009,1776498632422,-500.0,9.424e-05,2]
[420729010,1776498632432,-151.0,9.455e-05,2]
[420729011,1776498632442,-150.0,9.455e-05,2]
[420729012,1776498632452,-794.2,9.459e-05,2]
[420729013,1776498632461,-500.0,9.479e-05,2]
[420729014,1776498632471,-166.66,9.483e-05,2]
[420729015,1776498632483,-151.0,9.51e-05,2]
[420729016,1776498632493,-151.0,9.565e-05,2]
[420729017,1776498632503,-2000.0,9.599e-05,2]
[420729018,1776498632513,-151.0,9.62e-05,2]
[420729019,1776498632523,-299.99,9.67e-05,2]
[420729020,1776498632533,-6681.49,9.67e-05,2]
[420729021,1776498632548,-150.99,9.67e-05,2]
[420729022,1776498632560,-999.99,9.67e-05,2]
[420729023,1776498632570,-9999.99,9.67e-05,2]
[420729024,1776498632581,-9999.99,9.67e-05,2]
[420729025,1776498632593,-151.0,9.675e-05,2]
[420729026,1776498632605,-209.40437684,9.728e-05,2]
[420729027,1776498632616,-181.08010149,9.728e-05,2]
[420729028,1776498632626,-1428.38747117,9.729e-05,2]
[420729029,1776498632636,-200.0,9.729e-05,2]
[420729030,1776498632647,-771.01748645,9.729e-05,2]
[420729031,1776498632659,-151.0,9.73e-05,2]
[420729032,1776498632670,-794.2,9.733e-05,2]
[420729033,1776498632680,-166.66,9.768e-05,2]
[420729034,1776498632691,-150.0,9.781e-05,2]
[420729035,1776498632701,-150.0,9.781e-05,2]
[420729036,1776498632711,-150.0,9.781e-05,2]
[420729037,1776498632720,-150.0,9.781e-05,2]
[420729038,1776498632736,-150.0,9.781e-05,2]
[420729039,1776498632746,-150.0,9.781e-05,2]
[420729040,1776498632758,-150.0,9.781e-05,2]
[420729041,1776498632772,-150.0,9.781e-05,2]
[420729042,1776498632782,-151.0,9.785e-05,2]
[420729043,1776498632793,-500.0,9.79e-05,2]
[420729044,1776498632802,-500.0,9.79e-05,2]
[420729045,1776498632812,-500.0,9.79e-05,2]
[420729046,1776498632822,-500.0,9.79e-05,2]
[420729047,1776498632832,-500.0,9.79e-05,2]
[420729048,1776498632842,-169.23746603,9.79e-05,2]
[420729049,1776498632852,-500.0,9.79e-05,2]
[420729050,1776498632862,-500.0,9.79e-05,2]
[420729051,1776498632872,-500.0,9.79e-05,2]
[420729052,1776498632882,-500.0,9.79e-05,2]
[420729053,1776498632894,-14229.42487259,9.791e-05,2]
[420729054,1776498632965,-1850.0,9.791e-05,2]
[420729055,1776498632978,-1306.353504,9.791e-05,2]
[420729056,1776498632991,-867.29465335,9.791e-05,2]
[420729057,1776498633004,-9167.79882738,9.791e-05,2]
[420729058,1776498638043,-1478.63014659,9.791e-05,2]
[420729059,1776498638065,-11556.63275172,9.791e-05,2]
[420729060,1776498638077,-269.21200311,9.791e-05,2]
[420729061,1776498638278,-4144.1699421,9.791e-05,2]
[420729089,1776498642957,-536.16821049,9.086e-05,2]
[420729106,1776499599631,-300.0,7.999e-05,2]
[420729107,1776499599654,-1200.0,7.999e-05,2]
[420729108,1776499599675,-9350.0,8e-05,2]
[420729112,1776499832285,-1042.34847306,8e-05,2]
[420729113,1776499832304,-1926.66779991,8e-05,2]
[420729114,1776499832334,-1460.32375375,8e-05,2]
[420729115,1776499832345,-543.45615475,8e-05,2]
[420729116,1776499832355,-156.0,8.1e-05,2]
[420729117,1776499832364,-246.1673,8.119e-05,2]
[420729118,1776499832373,-571.50923232,8.196e-05,2]
[420729119,1776499838313,-979.47501245,8.196e-05,2]
[420729120,1776499838325,-565.38575523,8.196e-05,2]
[420729121,1776499838335,-464.29,8.214e-05,2]
[420729122,1776499838344,-125.37588652,8.364e-05,2]
[420729123,1776499838366,-174.62411348,8.364e-05,2]
[420729124,1776499838375,-1200.0,8.364e-05,2]
[420729125,1776499838385,-197.05224282,8.364e-05,2]
[420729126,1776499838427,-102.94775718,8.364e-05,2]
[420729127,1776499838438,-1600.0,8.365e-05,2]
[420729128,1776499838448,-998.634,8.365e-05,2]
[420729129,1776499838458,-8734.80825137,8.395e-05,2]
[420729130,1776499838549,-6178.16174863,8.395e-05,2]
[420729131,1776499838559,-906.23654893,8.482e-05,2]
[420729132,1776499838570,-593.76345107,8.482e-05,2]
[420729133,1776499838580,-1852.42,8.583e-05,2]
[420729134,1776499838590,-250.0,8.8e-05,2]
[420729135,1776499838599,-318.81663893,8.94e-05,2]
[420729136,1776499838610,-490.0,8.94e-05,2]
[420729185,1776499840482,-298.73796107,8.94e-05,2]
[420729186,1776499840493,-390.98728264,8.94e-05,2]
[420729187,1776499840508,-265.16908496,8.94e-05,2]
[420729188,1776499840749,-547.6257324,8.94e-05,2]
[420729189,1776499840760,-122.2531006,8.985e-05,2]
[420729190,1776499840773,-27.7468994,8.985e-05,2]
[420729191,1776499840783,-486.17749698,8.986e-05,2]
[420729197,1776499843624,-377.65200136,8.986e-05,2]
[420729203,1776499847619,-733.71024716,8.986e-05,2]
[420729204,1776499847646,-3147.60753195,8.986e-05,2]
[420729205,1776499847720,-6667.47518771,8.986e-05,2]
[420729252,1776500886382,10000.0,8e-05,10]
[420729253,1776500908424,10000.0,8e-05,10]
[420729254,1776500928113,10000.0,7.22e-05,2]
[420729255,1776500935537,0.01,7.22e-05,2]
[420729256,1776500935560,9999.99,7.22e-05,2]
[420729257,1776500951486,8536.0,7.22e-05,2]
[420729264,1776501032219,-482.6128,7.9e-05,2]
[420729265,1776501032229,-300.00007195,7.98e-05,2]
[420729266,1776501032239,-783.02192949,8.005e-05,2]
[420729267,1776501032277,-4127.55598427,8.005e-05,2]
[420729268,1776501032289,-1200.0,8.111e-05,2]
[420729269,1776501032300,-300.0,8.111e-05,2]
[420729270,1776501032312,-272.30637849,8.112e-05,2]
[420729271,1776501032323,-150.0812423,8.112e-05,2]
[420729272,1776501032335,-150.0,8.112e-05,2]
[420729273,1776501032347,-152.1122056,8.112e-05,2]
[420729274,1776501032359,-16.26627493,8.112e-05,2]
[420729275,1776501032373,-145.80086656,8.112e-05,2]
[420729276,1776501032384,-153.10779314,8.112e-05,2]
[420729277,1776501032394,-17.81725734,8.112e-05,2]
[420729278,1776501032409,-132.18274266,8.112e-05,2]
[420729279,1776501032420,-267.81725734,8.218e-05,2]
[420729280,1776501032434,-932.18274266,8.218e-05,2]
[420729281,1776501032445,-2627.81725736,8.219e-05,2]
[420729282,1776501032459,-2414.2214,8.219e-05,2]
[420729283,1776501032473,-9214.38258139,8.219e-05,2]
[420729284,1776501032486,-1599.31876125,8.219e-05,2]
[420729285,1776501032496,-592.0,8.219e-05,2]
[420729286,1776501032505,-500.0,8.244e-05,2]
[420729287,1776501032515,-500.0,8.438e-05,2]
[420729288,1776501032526,-161.99,8.494e-05,2]
[420729289,1776501032536,-2000.0,8.5e-05,2]
[420729290,1776501032547,-1387.48,8.507e-05,2]
[420729291,1776501032560,-259.556,8.507e-05,2]
[420729292,1776501032571,-150.0,8.507e-05,2]
[420729293,1776501032583,-208.28409121,8.508e-05,2]
[420729294,1776501032599,-77082.65261577,8.508e-05,2]
[420729295,1776501032612,-816.11829527,8.508e-05,2]
[420729297,1776501032626,-1447.41499775,8.508e-05,2]
[420729299,1776501032637,-200.0,8.588e-05,2]
[420729301,1776501032649,-2119.71,8.588e-05,2]
[420729304,1776501032660,-526.31065263,8.588e-05,2]
[420729306,1776501032674,-407.0,8.588e-05,2]
[420729308,1776501032688,-66.67934737,8.588e-05,2]
[420729310,1776501032699,-150.99,8.588e-05,2]
[420729312,1776501032709,-765.83,8.588e-05,2]
[420729315,1776501032720,-574.13423249,8.588e-05,2]
[420729317,1776501032742,-258.87161287,8.588e-05,2]
[420729410,1776501040924,-9166.98415464,8.588e-05,2]
[420729411,1776501040935,-9999.99,8.588e-05,2]
[420729412,1776501040944,-2927.909,8.59e-05,2]
[420729413,1776501040954,-5000.0,8.69e-05,2]
[420729414,1776501040963,-193.0,8.69e-05,2]
[420729415,1776501040972,-2948.41851262,8.69e-05,2]
[420729416,1776501040988,-586.98808,8.69e-05,2]
[420729417,1776501041093,-1019.64210675,8.69e-05,2]
[420729418,1776501041106,-444.96130063,8.69e-05,2]
[420729419,1776501041115,-338.3785733,8.69e-05,2]
[420729420,1776501041125,-250.0,8.69e-05,2]
[420729421,1776501041134,-1842.1759561,8.69e-05,2]
[420729422,1776501041165,-1526.93068013,8.69e-05,2]
[420729423,1776501041244,-836.8570242,8.69e-05,2]
[420729427,1776501046447,-726.65367492,8.69e-05,2]
[420729428,1776501046661,-67.38266465,8.69e-05,2]
[420729429,1776501046671,-410.79283471,8.786e-05,2]
[420729434,1776501047178,-2089.20716529,8.786e-05,2]
[420729435,1776501047188,-200.0,8.8e-05,3]
[420729436,1776501047198,-14.79283471,8.849e-05,2]
[420729437,1776501047244,-560.0,8.849e-05,2]
[420729460,1776501048667,-380.51299992,8.849e-05,2]
[420729474,1776502219890,226.00469491,7.22e-05,2]
[420729485,1776502232243,-1600.0,7.938e-05,2]
[420729486,1776502232253,-88.3148888,8.219e-05,2]
[420729487,1776502232453,-383.5351112,8.219e-05,2]
[420729488,1776502232464,-500.0,8.301e-05,2]
[420729489,1776502232474,-73.44291825,8.411e-05,2]
[420729490,1776502232491,-426.55708175,8.411e-05,2]
[420729491,1776502232501,-224.23637322,8.411e-05,2]
[420729492,1776502232511,-209.0,8.493e-05,2]
[420729493,1776502232521,-210.0,8.493e-05,2]
[420729494,1776502232531,-200.0,8.493e-05,2]
[420729495,1776502232541,-210.0,8.493e-05,2]
[420729496,1776502232551,-500.0,8.493e-05,2]
[420729497,1776502232561,-1187.0,8.511e-05,2]
[420729498,1776502232571,-150.0,8.512e-05,2]
[420729499,1776502232581,-300.0,8.512e-05,2]
[420729500,1776502232596,-1984.3141066,8.513e-05,2]
[420729501,1776502232723,-2690.4387911,8.513e-05,2]
[420729502,1776502232734,-19979.06662293,8.513e-05,2]
[420729503,1776502232747,-15633.78549667,8.513e-05,2]
[420729504,1776502232758,-48703.01751882,8.513e-05,2]
[420729505,1776502232821,-115936.56185448,8.513e-05,2]
[420729506,1776502232832,-179.3157474,8.513e-05,2]
[420729507,1776502232843,-224.23637322,8.513e-05,2]
[420729508,1776502232853,-166.24,8.516e-05,2]
[420729509,1776502232865,-500.0,8.575e-05,2]
[420729510,1776502232875,-755.03093209,8.682e-05,2]
[420729511,1776502232889,-755.03093209,8.682e-05,2]
[420729512,1776502232899,-151.0,8.682e-05,2]
[420729513,1776502232909,-151.0,8.682e-05,2]
[420729514,1776502232919,-151.0,8.682e-05,2]
[420729515,1776502232930,-151.0,8.682e-05,2]
[420729516,1776502232939,-151.0,8.682e-05,2]
[420729517,1776502232949,-152.310027,8.682e-05,2]
[420729518,1776502232959,-500.0,8.683e-05,2]
[420729519,1776502232968,-151.0,8.684e-05,2]
[420729520,1776502232978,-151.0,8.684e-05,2]
[420729521,1776502232989,-33073.7314,8.685e-05,2]
[420729522,1776502233000,-152.728709,8.685e-05,2]
[420729523,1776502233010,-151.0,8.685e-05,2]
[420729524,1776502233020,-836.672979,8.685e-05,2]
[420729525,1776502233030,-859.753121,8.685e-05,2]
[420729526,1776502233040,-859.753121,8.685e-05,2]
[420729527,1776502233050,-836.672979,8.685e-05,2]
[420729528,1776502233060,-859.753121,8.685e-05,2]
[420729529,1776502233070,-836.672979,8.685e-05,2]
[420729530,1776502233081,-859.753121,8.685e-05,2]
[420729531,1776502233091,-836.672979,8.685e-05,2]
[420729532,1776502233101,-151.0,8.685e-05,2]
[420729533,1776502233112,-151.0,8.685e-05,2]
[420729534,1776502233126,-193.0,8.732e-05,2]
[420729535,1776502233136,-500.70074508,8.763e-05,2]
[420729536,1776502233145,-150.99,8.784e-05,2]
[420729537,1776502233156,-500.0,8.784e-05,2]
[420729538,1776502233166,-579.28580363,8.784e-05,2]
[420729539,1776502233176,-500.0,8.784e-05,2]
[420729540,1776502233187,-500.0,8.784e-05,2]
[420729541,1776502233197,-500.0,8.784e-05,2]
[420729542,1776502233207,-500.0,8.784e-05,2]
[420729543,1776502233218,-500.0,8.784e-05,2]
[420729544,1776502233228,-283.28160296,8.784e-05,2]
[420729545,1776502233238,-500.0,8.784e-05,2]
[420729546,1776502233248,-500.0,8.784e-05,2]
[420729547,1776502233258,-266.9997445,8.784e-05,2]
[420729548,1776502233269,-500.0,8.784e-05,2]
[420729549,1776502233279,-500.0,8.784e-05,2]
[420729550,1776502233289,-661.84,8.784e-05,2]
[420729551,1776502233300,-151.0,8.784e-05,2]
[420729552,1776502233311,-836.672979,8.784e-05,2]
[420729553,1776502233321,-859.753121,8.784e-05,2]
[420729554,1776502233331,-859.753121,8.784e-05,2]
[420729555,1776502233341,-836.672979,8.784e-05,2]
[420729556,1776502233354,-859.753121,8.784e-05,2]
[420729557,1776502233364,-836.672979,8.784e-05,2]
[420729558,1776502233375,-859.753121,8.784e-05,2]
[420729559,1776502233385,-836.672979,8.784e-05,2]
[420729560,1776502233395,-151.0,8.784e-05,2]
[420729561,1776502233405,-151.0,8.784e-05,2]
[420729562,1776502233416,-166956.4973,8.785e-05,2]
[420729563,1776502233426,-229.757968,8.785e-05,2]
[420729564,1776502233437,-859.753121,8.785e-05,2]
[420729565,1776502233447,-836.672979,8.785e-05,2]
[420729566,1776502233457,-859.753121,8.785e-05,2]
[420729567,1776502233468,-836.672979,8.785e-05,2]
[420729568,1776502233478,-859.753121,8.785e-05,2]
[420729569,1776502233487,-836.672979,8.785e-05,2]
[420729570,1776502233497,-859.753121,8.785e-05,2]
[420729571,1776502233508,-836.672979,8.785e-05,2]
[420729572,1776502233518,-151.0,8.785e-05,2]
[420729573,1776502233528,-500.43588004,8.849e-05,2]
[420729574,1776502233538,-500.0,8.849e-05,2]
[420729575,1776502233549,-156.0,8.849e-05,3]
[420729576,1776502233559,-1548.15403202,8.849e-05,2]
[420729578,1776502237759,-162.59,8.47e-05,2]
[420729579,1776502237769,-442.28541506,8.681e-05,2]
[420729580,1776502237779,-594.88155671,8.681e-05,2]
[420729581,1776502237789,-580.89998708,8.681e-05,2]
[420729582,1776502237798,-580.89998708,8.681e-05,2]
[420729583,1776502237809,-580.89998708,8.681e-05,2]
[420729584,1776502237819,-580.89998708,8.681e-05,2]
[420729585,1776502237829,-580.89998708,8.681e-05,2]
[420729586,1776502237839,-580.89998708,8.681e-05,2]
[420729587,1776502237849,-371.23397799,8.681e-05,2]
[420729588,1776502237859,-580.89998708,8.681e-05,2]
[420729589,1776502237868,-54.61714068,8.681e-05,2]
[420729590,1776502237885,-526.2828464,8.681e-05,2]
[420729591,1776502237896,-358.10558247,8.681e-05,2]
[420729592,1776502237919,-222.79440461,8.681e-05,2]
[420729593,1776502237929,-106.30151169,8.681e-05,2]
[420729594,1776502238081,-474.59847539,8.681e-05,2]
[420729595,1776502238091,-580.89998708,8.681e-05,2]
[420729596,1776502238101,-580.89998708,8.681e-05,2]
[420729597,1776502238111,-280.26732319,8.681e-05,2]
[420729598,1776502238123,-300.63266389,8.681e-05,2]
[420729599,1776502238132,-580.89998708,8.681e-05,2]
[420729600,1776502238142,-580.89998708,8.681e-05,2]
[420729601,1776502238152,-580.89998708,8.681e-05,2]
[420729602,1776502238161,-580.89998708,8.681e-05,2]
[420729603,1776502238170,-580.89998708,8.681e-05,2]
[420729604,1776502238180,-580.89998708,8.681e-05,2]
[420729605,1776502238190,-580.89998708,8.681e-05,2]
[420729606,1776502238199,-368.4759738,8.681e-05,2]
[420729614,1776502245752,-212.42401328,8.681e-05,2]
[420729615,1776502245762,-580.89998708,8.681e-05,2]
[420729616,1776502245771,-580.89998708,8.681e-05,2]
[420729617,1776502245781,-580.89998708,8.681e-05,2]
[420729618,1776502245790,-539.90195171,8.681e-05,2]
[420729619,1776502245802,-40.99803537,8.681e-05,2]
[420729620,1776502245811,-580.89998708,8.681e-05,2]
[420729621,1776502245821,-273.01935911,8.681e-05,2]
[420729635,1776502246243,-307.88062797,8.681e-05,2]
[420729636,1776502246253,-580.89998708,8.681e-05,2]
[420729638,1776502246262,-580.89998708,8.681e-05,2]
[420729639,1776502246272,-580.89998708,8.681e-05,2]
[420729640,1776502246281,-580.89998708,8.681e-05,2]
[420729641,1776502246291,-580.89998708,8.681e-05,2]
[420729642,1776502246300,-580.89998708,8.681e-05,2]
[420729643,1776502246310,-580.89998708,8.681e-05,2]
[420729644,1776502246320,-217.68976177,8.681e-05,2]
[420729645,1776502246335,-363.21022531,8.681e-05,2]
[420729647,1776502246345,-580.89998708,8.681e-05,2]
[420729649,1776502246355,-580.89998708,8.681e-05,2]
[420729651,1776502246364,-580.89998708,8.681e-05,2]
[420729652,1776502246374,-580.89998708,8.681e-05,2]
[420729653,1776502246384,-580.89998708,8.681e-05,2]
[420729655,1776502246393,-580.89998708,8.681e-05,2]
[420729657,1776502246403,-580.89998708,8.681e-05,2]
[420729659,1776502246413,-580.89998708,8.681e-05,2]
[420729661,1776502246423,-580.89998708,8.681e-05,2]
[420729663,1776502246432,-580.89998708,8.681e-05,2]
[420729665,1776502246443,-580.89998708,8.681e-05,2]
[420729667,1776502246453,-580.89998708,8.681e-05,2]
[420729669,1776502246462,-580.89998708,8.681e-05,2]
[420729671,1776502246471,-580.89998708,8.681e-05,2]
[420729673,1776502246481,-580.89998708,8.681e-05,2]
[420729675,1776502246490,-142.95564818,8.681e-05,2]
[420729677,1776502246502,-437.9443389,8.681e-05,2]
[420729679,1776502246511,-580.89998708,8.681e-05,2]
[420729681,1776502246521,-506.4195691,8.681e-05,2]
[420729683,1776502246532,-74.48041798,8.681e-05,2]
[420729685,1776502246542,-580.89998708,8.681e-05,2]
[420729687,1776502246552,-580.89998708,8.681e-05,2]
[420729689,1776502246561,-580.89998708,8.681e-05,2]
[420729691,1776502246571,-217.85507791,8.681e-05,2]
[420729695,1776502246668,-363.04490917,8.681e-05,2]
[420729696,1776502246677,-580.89998708,8.681e-05,2]
[420729697,1776502246687,-393.77203579,8.681e-05,2]
[420729698,1776502246708,-187.12795129,8.681e-05,2]
[420729699,1776502246717,-580.89998708,8.681e-05,2]
[420729700,1776502246726,-1838.67106798,8.849e-05,2]
[420729701,1776502246737,-151.0,8.882e-05,2]
[420729702,1776502246748,-151.0,8.883e-05,2]
[420729703,1776502246758,-1600.0,8.93e-05,2]
[420729704,1776502246769,-859.753121,8.986e-05,2]
[420729705,1776502246778,-836.672979,8.986e-05,2]
[420729706,1776502246787,-859.753121,8.986e-05,2]
[420729707,1776502246796,-836.672979,8.986e-05,2]
[420729708,1776502246806,-859.753121,8.986e-05,2]
[420729710,1776502246815,-836.672979,8.986e-05,2]
[420729711,1776502246824,-859.753121,8.986e-05,2]
[420729712,1776502246834,-836.672979,8.986e-05,2]
[420729713,1776502246845,-1000.0,8.986e-05,2]
[420729714,1776502246855,-1000.0,8.986e-05,2]
[420729715,1776502246865,-1000.0,8.986e-05,2]
[420729716,1776502246875,-1015.1299067,8.986e-05,2]
[420729717,1776502246885,-151.0,9.036e-05,2]
[420729718,1776502246894,-151.0,9.037e-05,2]
[420729719,1776502246904,-151.0,9.037e-05,2]
[420729720,1776502246914,-3640.5497363,9.039e-05,2]
[420729721,1776502246924,-155.0,9.039e-05,2]
[420729722,1776502246936,-49958.46676387,9.04e-05,2]
[420729723,1776502246945,-859.753121,9.04e-05,2]
[420729724,1776502246956,-836.672979,9.04e-05,2]
[420729725,1776502246965,-859.753121,9.04e-05,2]
[420729726,1776502246974,-836.672979,9.04e-05,2]
[420729727,1776502246984,-859.753121,9.04e-05,2]
[420729728,1776502246995,-836.672979,9.04e-05,2]
[420729729,1776502247004,-859.753122,9.04e-05,2]
[420729730,1776502247014,-836.67298,9.04e-05,2]
[420729731,1776502247024,-838.7774505,9.041e-05,2]
[420729732,1776502247033,-661.84,9.058e-05,2]
[420729733,1776502247043,-150.0,9.065e-05,2]
[420729734,1776502247052,-158.9121914,9.099e-05,2]
[420729735,1776502247061,-161.99,9.202e-05,2]
[420729736,1776502247071,-661.84,9.332e-05,2]
[420729737,1776502247081,-420.0,9.363e-05,2]
[420729738,1776502247091,-1377.42282659,9.378e-05,2]
[420729739,1776502247100,-743.50770149,9.378e-05,2]
[420729740,1776502247110,-200.0,9.378e-05,2]
[420729741,1776502247119,-174.61919141,9.378e-05,2]
[420729742,1776502247128,-151.0,9.378e-05,2]
[420729743,1776502247138,-229.27713943,9.378e-05,2]
[420729744,1776502247148,-227.34163157,9.378e-05,2]
[420729745,1776502247157,-235.75327194,9.378e-05,2]
[420729746,1776502247167,-244.476143,9.378e-05,2]
[420729747,1776502247177,-253.52176029,9.378e-05,2]
[420729748,1776502247187,-262.90206542,9.378e-05,2]
[420729749,1776502247199,-303.95076135,9.378e-05,2]
[420729750,1776502247208,-2000.0,9.4e-05,2]
[420729751,1776502247218,-3628.0,9.4e-05,2]
[420729752,1776502247227,-151.0,9.433e-05,2]
[420729753,1776502247237,-151.0,9.488e-05,2]
[420729754,1776502247247,-1349.0,9.511e-05,2]
[420729755,1776502247257,-622.0,9.511e-05,2]
[420729756,1776502247266,-1048.57,9.511e-05,2]
[420729757,1776502247280,-277.761,9.511e-05,2]
[420729758,1776502247289,-6029.0,9.511e-05,2]
[420729759,1776502247299,-3782.698,9.511e-05,2]
[420729760,1776502247309,-2473.0,9.511e-05,2]
[420729761,1776502247318,-231.87432,9.538e-05,2]
[420729762,1776502247327,-151.0,9.543e-05,2]
[420729763,1776502247336,-833.0,9.555e-05,5]
[420729764,1776502247347,-2000.0,9.563e-05,2]
[420729765,1776502247356,-151.0,9.589e-05,2]
[420729766,1776502247366,-151.0,9.589e-05,2]
[420729767,1776502247376,-157.586443,9.589e-05,2]
[420729768,1776502247386,-151.0,9.598e-05,2]
[420729769,1776502247396,-2310.0,9.6e-05,2]
[420729770,1776502247405,-661.84,9.606e-05,2]
[420729771,1776502247414,-1043.0783627,9.618e-05,2]
[420729772,1776502247424,-7946.3013968,9.636e-05,2]
[420729773,1776502247433,-36736.0557123,9.636e-05,2]